fUSD/lending_fUSD_20240727
["ID","MTS","AMOUNT","RATE_DAILY","PERIOD"]
[333397528,1722105038168,-444.57,9.27e-05,2]
[333397529,1722105038177,-200.0,9.281e-05,2]
[333397530,1722105038187,-944.17,9.333e-05,2]
[333397531,1722105038197,-1852.42,9.333e-05,2]
[333397533,1722105038207,-250.0,9.373e-05,2]
[333397534,1722105038216,-1256.5169269,9.373e-05,2]
[333397535,1722105038227,-815.0,9.373e-05,2]
[333397536,1722105038238,-569.8699703,9.373e-05,2]
[333397537,1722105038248,-17992.4031028,9.373e-05,2]
[333397538,1722105038258,-12931.87640585,9.459e-05,2]
[333397539,1722105038267,-499.99,9.67e-05,2]
[333397540,1722105038276,-1135.73,9.67e-05,2]
[333397541,1722105038285,-150.0,9.888e-05,2]
[333397542,1722105038294,-369.43,9.9e-05,2]
[333397543,1722105038304,-369.43,9.9e-05,2]
[333397544,1722105038313,-369.43,9.9e-05,2]
[333397546,1722105038322,-369.43,9.9e-05,2]
[333397548,1722105038331,-369.43,9.9e-05,2]
[333397550,1722105038340,-369.43,9.9e-05,2]
[333397552,1722105038349,-369.43,9.9e-05,2]
[333397554,1722105038359,-369.43,9.9e-05,2]
[333397555,1722105038368,-369.43,9.9e-05,2]
[333397557,1722105038377,-369.43,9.9e-05,2]
[333397559,1722105038386,-1250.0,0.0001,2]
[333397561,1722105038395,-156.71,0.00010041,2]
[333397563,1722105038404,-156.71,0.00010044,2]
[333397565,1722105038414,-156.71,0.00010047,2]
[333397567,1722105038423,-156.71,0.0001005,2]
[333397569,1722105038432,-156.71,0.00010053,2]
[333397571,1722105038444,-156.71,0.00010056,2]
[333397573,1722105038453,-168.62,0.00010059,2]
[333397575,1722105038464,-156.71,0.00010059,2]
[333397577,1722105038474,-156.71,0.00010062,2]
[333397579,1722105038485,-156.71,0.00010065,2]
[333397580,1722105038496,-156.71,0.00010068,2]
[333397581,1722105038505,-156.71,0.00010071,2]
[333397582,1722105038515,-156.71,0.00010074,2]
[333397583,1722105038524,-156.71,0.00010077,2]
[333397584,1722105038534,-156.71,0.0001008,2]
[333397585,1722105038544,-156.71,0.00010083,2]
[333397586,1722105038555,-156.71,0.00010086,2]
[333397587,1722105038567,-156.71,0.00010089,2]
[333397588,1722105038578,-156.71,0.00010092,2]
[333397589,1722105038588,-1000.0,0.00010164,2]
[333397590,1722105038599,-587.0,0.00010177,2]
[333397591,1722105038608,-259.26709898,0.0001034,2]
[333397592,1722105038618,-986.52,0.00010438,2]
[333397593,1722105038631,-6267.45,0.00010475,2]
[333397594,1722105038641,-9999.99,0.00010475,2]
[333397595,1722105038650,-29999.99,0.00010475,2]
[333397596,1722105038661,-19999.99,0.00010475,2]
[333397597,1722105038670,-19142.76,0.00010475,2]
[333397598,1722105038679,-10229.96736025,0.0001088,2]
[333397599,1722105038688,-9826.77819104,0.0001089,2]
[333397600,1722105038698,-3000.0,0.0001089,2]
[333397601,1722105038707,-2185.06563869,0.00010899,2]
[333397602,1722105038716,-2185.06563865,0.00010899,2]
[333397603,1722105038725,-2185.06563865,0.00010899,2]
[333397604,1722105038734,-2185.06563865,0.00010899,2]
[333397605,1722105038743,-2185.06563865,0.00010899,2]
[333397606,1722105038752,-2185.06563865,0.00010899,2]
[333397607,1722105038761,-2185.06563865,0.00010899,2]
[333397608,1722105038771,-2185.06563865,0.00010899,2]
[333397609,1722105038780,-2185.06563865,0.00010899,2]
[333397610,1722105038789,-347.542,0.000109,2]
[333397611,1722105038798,-7500.0,0.000109,2]
[333397612,1722105038808,-185.14617473,0.000109,2]
[333397613,1722105038818,-190.07546064,0.000109,2]
[333397614,1722105038827,-329.60084461,0.000109,2]
[333397615,1722105038837,-198.96306483,0.000109,2]
[333397616,1722105038846,-2185.06563865,0.000109,2]
[333397617,1722105038856,-257.044199,0.000109,2]
[333397618,1722105038866,-176.96034438,0.000109,2]
[333397619,1722105038876,-500.0,0.00010912,2]
[333397620,1722105038885,-390.74057297,0.00010958,2]
[333397621,1722105038896,-500.0,0.00010959,2]
[333397622,1722105038905,-150.0,0.00010959,2]
[333397623,1722105038916,-250.0,0.00010959,2]
[333397624,1722105038927,-500.0,0.00010997,2]
[333397625,1722105038938,-242.983838,0.00010997,2]
[333397626,1722105038947,-977.722386,0.00010997,2]
[333397627,1722105038956,-540.7183828,0.00010997,2]
[333397628,1722105038966,-1183.8356493,0.00010997,2]
[333397629,1722105038976,-25000.0,0.00010997,2]
[333397630,1722105038987,-903.2584701,0.00010997,2]
[333397631,1722105038997,-500.0,0.00010998,2]
[333397632,1722105039009,-6758.57608726,0.00010999,2]
[333397633,1722105039020,-500.0,0.00010999,2]
[333397634,1722105039029,-500.0,0.00010999,2]
[333397635,1722105039041,-500.0,0.00010999,2]
[333397636,1722105039053,-500.0,0.00010999,2]
[333397637,1722105039061,-500.0,0.00010999,2]
[333397638,1722105039070,-500.0,0.00010999,2]
[333397639,1722105039080,-500.0,0.00010999,2]
[333397640,1722105039091,-500.0,0.00010999,2]
[333397641,1722105039101,-500.0,0.00010999,2]
[333397642,1722105039111,-500.0,0.00010999,2]
[333397643,1722105039120,-318.46,0.00010999,2]
[333397644,1722105039131,-500.0,0.00010999,2]
[333397645,1722105039141,-260.81853208,0.00010999,2]
[333397646,1722105039150,-477.01094481,0.00010999,2]
[333397647,1722105039159,-1000.0,0.00010999,2]
[333397648,1722105039169,-1000.0,0.00010999,2]
[333397649,1722105039178,-1000.0,0.00010999,2]
[333397650,1722105039187,-1000.0,0.00010999,2]
[333397651,1722105039198,-1000.0,0.00010999,2]
[333397652,1722105039207,-1000.0,0.00010999,2]
[333397653,1722105039216,-1000.0,0.00010999,2]
[333397654,1722105039225,-1000.0,0.00010999,2]
[333397655,1722105039234,-1000.0,0.00010999,2]
[333397656,1722105039244,-1000.0,0.00010999,2]
[333397657,1722105039253,-486.0,0.00010999,2]
[333397658,1722105039262,-486.0,0.00010999,2]
[333397659,1722105039273,-486.0,0.00010999,2]
[333397660,1722105039282,-486.0,0.00010999,2]
[333397661,1722105039292,-486.0,0.00010999,2]
[333397662,1722105039301,-486.0,0.00010999,2]
[333397663,1722105039311,-486.0,0.00010999,2]
[333397664,1722105039320,-486.0,0.00010999,2]
[333397665,1722105039329,-486.0,0.00010999,2]
[333397666,1722105039338,-486.0,0.00010999,2]
[333397667,1722105039347,-153.58758173,0.00010999,2]
[333397668,1722105039356,-375.30476655,0.00010999,2]
[333397669,1722105039365,-246715.46910158,0.00011,2]
[333397670,1722105039374,-754611.43948507,0.00011,2]
[333397671,1722105039387,-409639.21164988,0.00011,2]
[333397672,1722105039398,-21297.3192137,0.00011,2]
[333397673,1722105039409,-716.31418586,0.00011,2]
[333397674,1722105039420,-1003.64068,0.00011,2]
[333397675,1722105039431,-310.24010705,0.00011,2]
[333397676,1722105039442,-483.66,0.00011,2]
[333397679,1722105040022,-362.05671273,0.00011,2]
[333397680,1722105040034,-1551.54913448,0.00011,2]
[333397681,1722105040046,-2406.86716,0.00011,2]
[333397682,1722105040256,-616.11445773,0.00011,2]
[333397683,1722105040267,-415.87000001,0.00011,2]
[333397684,1722105040278,-786.85882658,0.00011,2]
[333397685,1722105040289,-75852.50550569,0.00011,2]
[333397686,1722105040302,-355483.58413842,0.00011,2]
[333397687,1722105040383,-4677.57779459,0.00011,2]
[333397688,1722105040395,-1500.0,0.00011,2]
[333397691,1722105040406,-627.83,0.00011,2]
[333397693,1722105040418,-3415.16277144,0.00011,2]
[333397695,1722105040429,-961.27203814,0.00011,2]
[333397697,1722105040443,-501.73880926,0.00011,2]
[333397720,1722105043072,-5655.250559,0.00011,2]
[333397721,1722105043084,-667.26928892,0.00011,2]
[333397722,1722105043105,-9451.7069897,0.00011,2]
[333397723,1722105043234,-590.9,0.00011,2]
[333397724,1722105043446,-312.14909766,0.00011,2]
[333397730,1722105046095,-2377.93226991,0.00011,2]
[333397731,1722105046302,-2054.82640347,0.00011,2]
[333397770,1722105047401,-122076.65917723,0.00011,2]
[333397772,1722105047412,-1981.0,0.00011,2]
[333397774,1722105047424,-2082.15278321,0.00011,2]
[333399735,1722105527483,156.45,0.000149,31]
[333399736,1722105527514,156.45,0.000149,31]
[333399737,1722105527547,156.45,0.000149,31]
[333399738,1722105527586,156.45,0.000149,31]
[333399765,1722106128479,156.59,0.000149,31]
[333399766,1722106128541,156.59,0.000149,31]
[333399767,1722106128594,156.59,0.000149,31]
[333399803,1722106232252,-1084.64,8.219e-05,2]
[333399804,1722106232263,-250.36951878,8.22e-05,2]
[333399805,1722106232272,-168.62,9.747e-05,2]
[333399806,1722106232282,-542.31,9.747e-05,2]
[333399807,1722106232292,-600.0,9.776e-05,2]
[333399808,1722106232301,-250.0,9.822e-05,2]
[333399809,1722106232310,-104.06048122,9.874e-05,2]
[333399810,1722106232322,-295.93951878,9.874e-05,2]
[333399811,1722106232331,-49.27048122,0.00010141,2]
[333399812,1722106232343,-5006.31741878,0.00010141,2]
[333399813,1722106232357,-263.1918,0.00010247,2]
[333399814,1722106232366,-300.0,0.00010299,2]
[333399815,1722106232376,-530.1,0.000103,2]
[333399816,1722106232385,-154.67,0.000103,2]
[333399817,1722106232397,-150.0,0.000103,2]
[333399818,1722106232407,-530.1,0.000103,2]
[333399819,1722106232416,-150.0,0.000103,2]
[333399820,1722106232428,-530.1,0.000103,2]
[333399821,1722106232437,-150.0,0.000103,2]
[333399822,1722106232447,-530.1,0.000103,2]
[333399824,1722106232456,-530.1,0.000103,2]
[333399826,1722106232466,-230.69,0.000103,2]
[333399828,1722106232475,-150.0,0.00010345,2]
[333399830,1722106232485,-9999.99,0.00010345,2]
[333399832,1722106232494,-499.99,0.00010346,2]
[333399834,1722106232504,-966.82,0.00010346,2]
[333399836,1722106232514,-296.92,0.00010346,2]
[333399838,1722106232523,-9571.86048399,0.00010347,2]
[333399839,1722106232534,-428.13951601,0.00010347,2]
[333399840,1722106232544,-1084.64,0.00010467,2]
[333399841,1722106232553,-2523.99,0.00010475,2]
[333399842,1722106232562,-32.83214827,0.000107,5]
[333399843,1722106232574,-865.31617129,0.000107,5]
[333399844,1722106232585,-3474.85168044,0.000107,5]
[333399845,1722106232594,-5666.0309,0.000108,2]
[333399846,1722106232604,-3341.5271533,0.000108,2]
[333399847,1722106232615,-420.98804803,0.000108,2]
[333399848,1722106232631,-397.82076205,0.000108,2]
[333399849,1722106232644,-633.99173601,0.000108,2]
[333399850,1722106232658,-1329.28402773,0.000108,2]
[333399851,1722106232719,-282.52614049,0.000108,2]
[333399852,1722106232730,-270.26587227,0.000108,2]
[333399853,1722106232741,-271.05628702,0.000108,2]
[333399854,1722106232753,-2456.7,0.000108,2]
[333399858,1722106238130,-1235.47644,0.00010347,2]
[333399859,1722106238141,-955.27057878,0.00010347,2]
[333399860,1722106238195,-362.80861515,0.00010347,2]
[333399862,1722106238206,-275.96458678,0.00010347,2]
[333399863,1722106238260,-3185.485254,0.00010347,2]
[333399864,1722106238273,-526.07957864,0.00010347,2]
[333399865,1722106238286,-3458.91494665,0.00010347,2]
[333399866,1722106238297,-528.4912731,0.000108,2]
[333399867,1722106238306,-4445.6684,0.000108,2]
[333399868,1722106238316,-209.53640209,0.00010851,2]
[333399869,1722106238326,-209.53640209,0.00010854,2]
[333399870,1722106238335,-2363.461,0.00010864,2]
[333399871,1722106238345,-209.53640209,0.00010879,2]
[333399872,1722106238360,-153.18864,0.0001089,2]
[333399873,1722106238371,-3000.0,0.0001089,2]
[333399874,1722106238380,-3034.9641,0.000109,2]
[333399875,1722106238390,-22740.04670088,0.000109,2]
[333399876,1722106238403,-620.0,0.000109,2]
[333399877,1722106238415,-544.57763909,0.000109,2]
[333399878,1722106238426,-1151.10805314,0.000109,2]
[333399879,1722106238444,-328.92787868,0.00010347,2]
[333399890,1722106240314,-9671.07212132,0.00010347,2]
[333399891,1722106240324,-8010.51707536,0.00010347,2]
[333399892,1722106240334,-34024.13150689,0.000109,2]
[333399893,1722106240343,-4658.77917447,0.000109,2]
[333399894,1722106240358,-694.76497276,0.000109,2]
[333399895,1722106240414,-6553.97164,0.000109,2]
[333399896,1722106240426,-259.1487988,0.000109,2]
[333399897,1722106240437,-574.92905729,0.000109,2]
[333399898,1722106240491,-29652.530304,0.000109,2]
[333399899,1722106240502,-656.60656736,0.000109,2]
[333399900,1722106240555,-12972.46384223,0.000109,2]
[333399901,1722106240622,-52019.14357001,0.000109,2]
[333399903,1722106240634,-1819.505,0.000109,2]
[333400076,1722106243184,-61010.58689394,0.000109,2]
[333400077,1722106243196,-378.703701,0.000109,2]
[333400078,1722106243209,-4143.31,0.000109,2]
[333400079,1722106243220,-9080.48953999,0.000109,2]
[333400081,1722106243250,-443.4506406,0.000109,2]
[333400082,1722106243262,-1429.0401895,0.000109,2]
[333400083,1722106243273,-6097.83191009,0.000109,2]
[333400084,1722106243285,-1383.95848256,0.000109,2]
[333400085,1722106243314,-345.30254868,0.000109,2]
[333400086,1722106243377,-633.56217276,0.000109,2]
[333400087,1722106243389,-927.77,0.000109,2]
[333400088,1722106243402,-2120.46047105,0.000109,2]
[333400089,1722106243414,-293.80853246,0.000109,2]
[333400090,1722106243428,-1728.53770147,0.000109,2]
[333400091,1722106243447,-930.552031,0.000109,2]
[333400115,1722106246275,-2020.3146244,0.000109,2]
[333400120,1722106246288,-13754.70413358,0.000109,2]
[333400122,1722106246297,-1000.0,0.000109,2]
[333400124,1722106246307,-500.0,0.000109,2]
[333400126,1722106246315,-1000.0,0.000109,2]
[333400128,1722106246325,-3604.1128,0.000109,2]
[333400130,1722106246334,-161.23799701,0.000109,2]
[333400132,1722106246344,-176.37316993,0.000109,2]
[333400134,1722106246356,-342.72559866,0.000109,2]
[333400136,1722106246365,-500.0,0.00010912,2]
[333400138,1722106246375,-550.92779849,0.00010958,2]
[333400140,1722106246387,-250.0,0.00010959,2]
[333400142,1722106246396,-518.1636741,0.00010997,2]
[333400144,1722106246409,-1058.3163319,0.00010997,2]
[333400146,1722106246418,-209.42742893,0.00010997,2]
[333400148,1722106246429,-600.0,0.00010998,2]
[333400150,1722106246438,-71414.54981102,0.00011,2]
[333400165,1722106247011,-292.84,0.00011,2]
[333400168,1722106247024,-626.86484445,0.00011,2]
[333400170,1722106247035,-521.20184298,0.00011,2]
[333400172,1722106247046,-3795.64476265,0.00011,2]
[333400174,1722106247058,-520.38152683,0.00011,2]
[333400176,1722106247069,-144872.43940349,0.00011,2]
[333400178,1722106247078,-400223.94443454,0.00011,2]
[333400186,1722106730030,156.61,0.000149,31]
[333400187,1722107055212,-191.6,8.048e-05,2]
[333400188,1722107055234,-1116.78,8.219e-05,2]
[333400189,1722107055256,-4284.1502,9.941e-05,2]
[333400190,1722107055277,-407.4698,0.0001,2]
[333400811,1722107432368,-478.1956183,8.219e-05,2]
[333400812,1722107433727,-472.07725986,8.219e-05,2]
[333400813,1722107433738,-110.66712184,8.219e-05,2]
[333400814,1722107433747,-842.5302,0.0001,2]
[333400815,1722107433756,-155.56074322,0.0001,2]
[333400816,1722107433768,-188.0,0.0001,4]
[333400817,1722107433779,-449.00481833,0.0001,2]
[333400818,1722107433788,-194.480352,0.0001,2]
[333400819,1722107433798,-160.13513463,0.0001,2]
[333400820,1722107433808,-1049.39668644,0.0001,2]
[333400821,1722107433820,-269.77494354,0.0001,2]
[333400822,1722107433833,-142.85483835,0.0001,2]
[333400823,1722107433843,-640.0,0.00010016,2]
[333400824,1722107433853,-360.0,0.00010077,2]
[333400825,1722107433862,-644.52,0.00010077,2]
[333400826,1722107433873,-1060.94,0.00010477,2]
[333400827,1722107433882,-4068.63494951,0.00010781,2]
[333400828,1722107433894,-29069.36505049,0.00010781,2]
[333400829,1722107433904,-308.7597,0.000108,2]
[333400830,1722107433914,-19837.3044,0.000108,2]
[333400831,1722107433924,-662.3303,0.000108,2]
[333400832,1722107433934,-1226.3264,0.000108,2]
[333400833,1722107433943,-849.7749,0.000108,2]
[333400834,1722107433953,-150.0,0.000108,2]
[333400835,1722107433963,-152.0,0.00010816,3]
[333400836,1722107433972,-17535.26949678,0.0001089,2]
[333400837,1722107433982,-182.7281,0.000109,2]
[333400838,1722107433992,-67281.14165272,0.000109,2]
[333400839,1722107434004,-12046.49247876,0.000109,2]
[333400840,1722107434016,-3423.6,0.000109,2]
[333400841,1722107434028,-2046.06,0.000109,2]
[333400842,1722107434219,-3065.28936852,0.000109,2]
[333400843,1722107434229,-158.97503194,0.000109,2]
[333400844,1722107434239,-1000.0,0.000109,2]
[333400845,1722107434248,-463.80340462,0.000109,2]
[333400846,1722107434258,-342.72559864,0.000109,2]
[333400847,1722107434267,-500.0,0.00010912,2]
[333400848,1722107434277,-250.0,0.00010959,2]
[333400849,1722107434286,-350.0,0.0001097,2]
[333400850,1722107434296,-209.42742889,0.00010997,2]
[333400851,1722107434306,-500.0,0.00010998,2]
[333400852,1722107434315,-500.0,0.00010998,2]
[333400853,1722107434330,-500.0,0.00010998,2]
[333400854,1722107434340,-500.0,0.00010998,2]
[333400855,1722107434350,-500.0,0.00010998,2]
[333400856,1722107434359,-386.20656293,0.00010999,2]
[333400857,1722107434369,-500.0,0.00010999,2]
[333400858,1722107434378,-500.0,0.00010999,2]
[333400859,1722107434388,-500.0,0.00010999,2]
[333400860,1722107434397,-500.0,0.00010999,2]
[333400861,1722107434406,-500.0,0.00010999,2]
[333400862,1722107434416,-500.0,0.00010999,2]
[333400863,1722107434425,-500.0,0.00010999,2]
[333400864,1722107434437,-500.0,0.00010999,2]
[333400865,1722107434447,-209.5270684,0.00010999,2]
[333400866,1722107434456,-502.26451967,0.00010999,2]
[333400867,1722107434465,-500.0,0.00010999,2]
[333400868,1722107434475,-500.0,0.00010999,2]
[333400869,1722107434484,-500.0,0.00010999,2]
[333400870,1722107434493,-500.0,0.00010999,2]
[333400871,1722107434503,-500.0,0.00010999,2]
[333400872,1722107434512,-500.0,0.00010999,2]
[333400873,1722107434522,-500.0,0.00010999,2]
[333400874,1722107434531,-500.0,0.00010999,2]
[333400875,1722107434540,-500.0,0.00010999,2]
[333400876,1722107434550,-500.0,0.00010999,2]
[333400877,1722107434559,-500.0,0.00010999,2]
[333400878,1722107434570,-500.0,0.00010999,2]
[333400879,1722107434579,-500.0,0.00010999,2]
[333400880,1722107434589,-500.0,0.00010999,2]
[333400881,1722107434598,-500.0,0.00010999,2]
[333400882,1722107434608,-265.41380306,0.00010999,2]
[333400883,1722107434618,-500.0,0.00010999,2]
[333400884,1722107434628,-500.0,0.00010999,2]
[333400885,1722107434638,-500.0,0.00010999,2]
[333400886,1722107434648,-500.0,0.00010999,2]
[333400887,1722107434657,-500.0,0.00010999,2]
[333400888,1722107434667,-259.1,0.00010999,2]
[333400889,1722107434677,-713.47,0.00010999,2]
[333400890,1722107434690,-713.47,0.00010999,2]
[333400891,1722107434699,-713.47,0.00010999,2]
[333400892,1722107434709,-713.47,0.00010999,2]
[333400893,1722107434718,-713.47,0.00010999,2]
[333400894,1722107434729,-713.47,0.00010999,2]
[333400895,1722107434740,-713.47,0.00010999,2]
[333400896,1722107434749,-713.47,0.00010999,2]
[333400897,1722107434759,-135.50720733,0.00010999,2]
[333400898,1722107434771,-577.96279267,0.00010999,2]
[333400899,1722107434781,-713.47,0.00010999,2]
[333400900,1722107434790,-532.84195468,0.00010999,2]
[333400901,1722107434803,-180.62804532,0.00010999,2]
[333400902,1722107434813,-414.93445468,0.00010999,2]
[333400903,1722107434877,-298.53554532,0.00010999,2]
[333400904,1722107434886,-713.47,0.00010999,2]
[333400905,1722107434895,-713.47,0.00010999,2]
[333400906,1722107434905,-713.47,0.00010999,2]
[333400907,1722107434914,-713.47,0.00010999,2]
[333400908,1722107434923,-713.47,0.00010999,2]
[333400909,1722107434932,-55.40991716,0.00010999,2]
[333400910,1722107434943,-658.06008284,0.00010999,2]
[333400911,1722107434952,-713.47,0.00010999,2]
[333400912,1722107434961,-713.47,0.00010999,2]
[333400913,1722107434971,-713.47,0.00010999,2]
[333400914,1722107434981,-693.88079774,0.00010999,2]
[333400915,1722107434992,-19.58920226,0.00010999,2]
[333400916,1722107435002,-713.47,0.00010999,2]
[333400917,1722107435012,-373.04946245,0.00010999,2]
[333400918,1722107435029,-340.57053755,0.00010999,2]
[333400919,1722107435039,-500.0,0.00010999,2]
[333400920,1722107435050,-500.0,0.00010999,2]
[333400921,1722107435060,-500.0,0.00010999,2]
[333400922,1722107435072,-500.0,0.00010999,2]
[333400923,1722107435082,-500.0,0.00010999,2]
[333400924,1722107435092,-500.0,0.00010999,2]
[333400925,1722107435102,-500.0,0.00010999,2]
[333400926,1722107435111,-500.0,0.00010999,2]
[333400927,1722107435120,-280.60028662,0.00010999,2]
[333400928,1722107435130,-577.71,0.00010999,2]
[333400929,1722107435139,-577.71,0.00010999,2]
[333400930,1722107435151,-577.71,0.00010999,2]
[333400931,1722107435161,-486.09917583,0.00010999,2]
[333400932,1722107435172,-91.61082417,0.00010999,2]
[333400933,1722107435182,-577.71,0.00010999,2]
[333400934,1722107435192,-500.0,0.00010999,2]
[333400935,1722107435201,-577.71,0.00010999,2]
[333400936,1722107435211,-500.0,0.00010999,2]
[333400937,1722107435221,-577.71,0.00010999,2]
[333400938,1722107435232,-500.0,0.00010999,2]
[333400939,1722107435241,-577.71,0.00010999,2]
[333400940,1722107435251,-500.0,0.00010999,2]
[333400941,1722107435261,-577.71,0.00010999,2]
[333400942,1722107435271,-500.0,0.00010999,2]
[333400943,1722107435280,-577.71,0.00010999,2]
[333400944,1722107435290,-577.71,0.00010999,2]
[333400945,1722107435300,-577.71,0.00010999,2]
[333400946,1722107435309,-577.71,0.00010999,2]
[333400947,1722107435321,-577.71,0.00010999,2]
[333400948,1722107435330,-577.71,0.00010999,2]
[333400949,1722107435340,-577.71,0.00010999,2]
[333400950,1722107435350,-577.71,0.00010999,2]
[333400951,1722107435360,-500.0,0.00010999,2]
[333400952,1722107435369,-577.71,0.00010999,2]
[333400953,1722107435378,-500.0,0.00010999,2]
[333400954,1722107435387,-577.71,0.00010999,2]
[333400955,1722107435396,-577.71,0.00010999,2]
[333400956,1722107435405,-500.0,0.00010999,2]
[333400957,1722107435415,-500.0,0.00010999,2]
[333400958,1722107435426,-577.71,0.00010999,2]
[333400959,1722107435437,-500.0,0.00010999,2]
[333400960,1722107435446,-577.71,0.00010999,2]
[333400961,1722107435456,-577.71,0.00010999,2]
[333400962,1722107435465,-577.83,0.00010999,2]
[333400963,1722107435475,-500.0,0.00010999,2]
[333400964,1722107435484,-500.0,0.00010999,2]
[333400965,1722107435494,-440.43614534,0.00010999,2]
[333400966,1722107435503,-500.0,0.00010999,2]
[333400967,1722107435513,-500.0,0.00010999,2]
[333400968,1722107435522,-500.0,0.00010999,2]
[333400969,1722107435531,-500.0,0.00010999,2]
[333400970,1722107435540,-280.82534519,0.00010999,2]
[333400971,1722107435549,-500.0,0.00010999,2]
[333400972,1722107435559,-500.0,0.00010999,2]
[333400973,1722107435568,-500.0,0.00010999,2]
[333400974,1722107435577,-500.0,0.00010999,2]
[333400975,1722107435586,-500.0,0.00010999,2]
[333400976,1722107435595,-500.0,0.00010999,2]
[333400977,1722107435604,-500.0,0.00010999,2]
[333400978,1722107435613,-500.0,0.00010999,2]
[333400979,1722107435622,-500.0,0.00010999,2]
[333400980,1722107435632,-500.0,0.00010999,2]
[333400981,1722107435641,-500.0,0.00010999,2]
[333400982,1722107435650,-500.0,0.00010999,2]
[333400983,1722107435660,-500.0,0.00010999,2]
[333400984,1722107435669,-500.0,0.00010999,2]
[333400985,1722107435679,-500.0,0.00010999,2]
[333400986,1722107435688,-500.0,0.00010999,2]
[333400987,1722107435701,-500.0,0.00010999,2]
[333400988,1722107435710,-500.0,0.00010999,2]
[333400989,1722107435719,-500.0,0.00010999,2]
[333400990,1722107435729,-500.0,0.00010999,2]
[333400991,1722107435741,-500.0,0.00010999,2]
[333400992,1722107435750,-500.0,0.00010999,2]
[333400993,1722107435759,-500.0,0.00010999,2]
[333400994,1722107435769,-561.29128322,0.00010999,2]
[333400995,1722107435778,-500.0,0.00010999,2]
[333400996,1722107435788,-500.0,0.00010999,2]
[333400997,1722107435797,-500.0,0.00010999,2]
[333400998,1722107435982,-500.0,0.00010999,2]
[333400999,1722107435992,-500.0,0.00010999,2]
[333401000,1722107436002,-500.0,0.00010999,2]
[333401001,1722107436011,-536.14741777,0.00010999,2]
[333401002,1722107436021,-500.0,0.00010999,2]
[333401003,1722107436030,-359.56820522,0.00010999,2]
[333401004,1722107436039,-500.0,0.00010999,2]
[333401005,1722107436048,-500.0,0.00010999,2]
[333401006,1722107436057,-500.0,0.00010999,2]
[333401007,1722107436069,-500.0,0.00010999,2]
[333401008,1722107436079,-512.64,0.00010999,2]
[333401009,1722107436088,-625.0,0.00010999,2]
[333401010,1722107436097,-625.0,0.00010999,2]
[333401011,1722107436106,-625.0,0.00010999,2]
[333401012,1722107436115,-625.0,0.00010999,2]
[333401013,1722107436125,-625.0,0.00010999,2]
[333401014,1722107436134,-625.0,0.00010999,2]
[333401015,1722107436143,-625.0,0.00010999,2]
[333401016,1722107436155,-625.0,0.00010999,2]
[333401017,1722107436164,-625.0,0.00010999,2]
[333401018,1722107436174,-625.0,0.00010999,2]
[333401019,1722107436183,-625.0,0.00010999,2]
[333401020,1722107436192,-625.0,0.00010999,2]
[333401021,1722107436202,-625.0,0.00010999,2]
[333401022,1722107436213,-625.0,0.00010999,2]
[333401023,1722107436222,-625.0,0.00010999,2]
[333401024,1722107436230,-625.0,0.00010999,2]
[333401025,1722107436239,-625.0,0.00010999,2]
[333401026,1722107436248,-625.0,0.00010999,2]